fUSD/lending_fUSD_20240919
["ID","MTS","AMOUNT","RATE_DAILY","PERIOD"]
[338540920,1726726241898,-500.0,0.00013167,2]
[338540921,1726726241907,-500.0,0.00013167,2]
[338540922,1726726241916,-500.0,0.00013167,2]
[338540923,1726726241925,-735.02,0.00013167,2]
[338540924,1726726241935,-504.31,0.00013167,2]
[338540925,1726726241944,-1540.64,0.00013167,2]
[338540926,1726726241953,-500.0,0.00013167,2]
[338540927,1726726241963,-3526.32,0.00013167,2]
[338540928,1726726241972,-500.0,0.00013167,2]
[338540929,1726726241982,-1017.05,0.00013167,2]
[338540930,1726726241991,-967.26,0.00013167,2]
[338540931,1726726242001,-743.3,0.00013167,2]
[338540932,1726726242011,-500.0,0.00013167,2]
[338540933,1726726242020,-500.0,0.00013167,2]
[338540934,1726726242030,-1402.77,0.00013167,2]
[338540935,1726726242039,-500.0,0.00013167,2]
[338540936,1726726242048,-500.0,0.00013167,2]
[338540937,1726726242059,-2438.56,0.00013167,2]
[338540938,1726726242068,-1199.42,0.00013167,2]
[338540939,1726726242078,-1805.28,0.00013167,2]
[338540940,1726726242089,-500.0,0.00013167,2]
[338540941,1726726242101,-544.81,0.00013167,2]
[338540942,1726726242111,-562.56,0.00013167,2]
[338540943,1726726242120,-500.0,0.00013167,2]
[338540944,1726726242130,-1458.08,0.00013167,2]
[338540945,1726726242140,-500.0,0.00013167,2]
[338540946,1726726242150,-532.66,0.00013167,2]
[338540947,1726726242159,-526.98,0.00013167,2]
[338540948,1726726242169,-500.0,0.00013167,2]
[338540949,1726726242181,-500.0,0.00013167,2]
[338540950,1726726242190,-542.11,0.00013167,2]
[338540951,1726726242200,-500.0,0.00013167,2]
[338540952,1726726242210,-1725.83,0.00013167,2]
[338540953,1726726242220,-947.81,0.00013167,2]
[338540954,1726726242230,-959.06,0.00013167,2]
[338540955,1726726242241,-1438.42,0.00013167,2]
[338540957,1726726242251,-500.0,0.00013167,2]
[338540958,1726726242260,-1603.04,0.00013167,2]
[338540959,1726726242271,-500.0,0.00013167,2]
[338540961,1726726242281,-500.0,0.00013167,2]
[338540963,1726726242291,-509.88,0.00013167,2]
[338540965,1726726242301,-869.39,0.00013167,2]
[338540967,1726726242311,-500.0,0.00013167,2]
[338540969,1726726242321,-310.69753281,0.00013167,2]
[338540971,1726726242331,-500.0,0.00013167,2]
[338540973,1726726242342,-1537.55,0.00013167,2]
[338540975,1726726242351,-872.94,0.00013167,2]
[338540977,1726726242360,-500.0,0.00013167,2]
[338540979,1726726242370,-721.03,0.00013167,2]
[338540981,1726726242380,-1632.1,0.00013167,2]
[338540983,1726726242390,-500.0,0.00013167,2]
[338540985,1726726242400,-624.03,0.00013167,2]
[338540987,1726726242410,-500.0,0.00013167,2]
[338540989,1726726242420,-500.0,0.00013167,2]
[338540991,1726726242430,-823.62,0.00013167,2]
[338540993,1726726242439,-500.0,0.00013167,2]
[338540994,1726726242448,-500.0,0.00013167,2]
[338540996,1726726242458,-500.0,0.00013167,2]
[338540998,1726726242467,-1347.1,0.00013167,2]
[338541000,1726726242480,-500.0,0.00013167,2]
[338541002,1726726242491,-915.08,0.00013167,2]
[338541004,1726726242501,-1061.37,0.00013167,2]
[338541006,1726726242511,-500.0,0.00013167,2]
[338541008,1726726242521,-500.0,0.00013167,2]
[338541010,1726726242531,-500.0,0.00013167,2]
[338541012,1726726242541,-500.0,0.00013167,2]
[338541014,1726726242550,-500.0,0.00013167,2]
[338541050,1726726242897,-1882.9,0.00013167,2]
[338541052,1726726242908,-500.0,0.00013167,2]
[338541054,1726726242918,-500.0,0.00013167,2]
[338541056,1726726242929,-500.0,0.00013167,2]
[338541058,1726726242938,-629.21,0.00013167,2]
[338541060,1726726242948,-570.22,0.00013167,2]
[338541062,1726726242957,-1302.03,0.00013167,2]
[338541064,1726726242967,-500.0,0.00013167,2]
[338541066,1726726242977,-500.0,0.00013167,2]
[338541068,1726726242986,-500.0,0.00013167,2]
[338541070,1726726242996,-1111.24,0.00013167,2]
[338541072,1726726243006,-1004.44,0.00013167,2]
[338541074,1726726243016,-500.0,0.00013167,2]
[338541076,1726726243026,-1249.44,0.00013167,2]
[338541078,1726726243035,-1668.61,0.00013167,2]
[338541080,1726726243045,-500.0,0.00013167,2]
[338541082,1726726243056,-278.42430138,0.00013167,2]
[338541084,1726726243066,-500.0,0.00013167,2]
[338541086,1726726243076,-500.0,0.00013167,2]
[338541088,1726726243086,-1484.77,0.00013167,2]
[338541090,1726726243100,-1349.5,0.00013167,2]
[338541092,1726726243109,-500.0,0.00013167,2]
[338541094,1726726243119,-500.06,0.00013167,2]
[338541096,1726726243129,-640.31,0.00013167,2]
[338541098,1726726243139,-1765.5,0.00013167,2]
[338541100,1726726243149,-852.28,0.00013167,2]
[338541102,1726726243160,-671.43,0.00013167,2]
[338541104,1726726243171,-443.01507827,0.00013167,2]
[338541106,1726726243181,-1741.55,0.00013167,2]
[338541108,1726726243190,-500.0,0.00013167,2]
[338541110,1726726243201,-578.93721689,0.00013167,2]
[338541112,1726726243211,-500.0,0.00013167,2]
[338541113,1726726243221,-519.69,0.00013167,2]
[338541114,1726726243231,-802.29,0.00013167,2]
[338541115,1726726243241,-500.0,0.00013167,2]
[338541116,1726726243250,-500.0,0.00013167,2]
[338541117,1726726243261,-500.0,0.00013167,2]
[338541118,1726726243270,-1105.83,0.00013167,2]
[338541119,1726726243280,-868.76,0.00013167,2]
[338541120,1726726243289,-500.0,0.00013167,2]
[338541121,1726726243299,-511.05,0.00013167,2]
[338541122,1726726243308,-1741.26,0.00013167,2]
[338541123,1726726243318,-500.0,0.00013167,2]
[338541124,1726726243327,-500.0,0.00013167,2]
[338541125,1726726243337,-1797.8,0.00013167,2]
[338541126,1726726243347,-578.91560427,0.00013167,2]
[338541127,1726726243357,-500.0,0.00013167,2]
[338541128,1726726243367,-1021.57,0.00013167,2]
[338541129,1726726243377,-1011.08,0.00013167,2]
[338541130,1726726243386,-621.3,0.00013167,2]
[338541131,1726726243396,-500.0,0.00013167,2]
[338541132,1726726243405,-514.67,0.00013167,2]
[338541133,1726726243415,-500.0,0.00013167,2]
[338541134,1726726243424,-500.0,0.00013167,2]
[338541135,1726726243434,-500.0,0.00013167,2]
[338541136,1726726243443,-500.0,0.00013167,2]
[338541137,1726726243453,-500.0,0.00013167,2]
[338541139,1726726243463,-1994.54,0.00013167,2]
[338541141,1726726243472,-500.0,0.00013167,2]
[338541143,1726726243482,-2727.27,0.00013167,2]
[338541145,1726726243491,-888.01,0.00013167,2]
[338541147,1726726243500,-500.0,0.00013167,2]
[338541149,1726726243510,-583.36,0.00013167,2]
[338541151,1726726243519,-404.70165068,0.00013167,2]
[338541153,1726726243529,-972.0,0.00013167,2]
[338541155,1726726243539,-500.0,0.00013167,2]
[338541157,1726726243549,-1153.94,0.00013167,2]
[338541159,1726726243558,-500.0,0.00013167,2]
[338541161,1726726243568,-500.0,0.00013167,2]
[338541163,1726726243577,-500.0,0.00013167,2]
[338541166,1726726243588,-2844.2,0.00013167,2]
[338541168,1726726243598,-1137.49,0.00013167,2]
[338541170,1726726243607,-612.93,0.00013167,2]
[338541172,1726726243617,-1447.1,0.00013167,2]
[338541173,1726726243627,-1311.45,0.00013167,2]
[338541175,1726726243636,-500.0,0.00013167,2]
[338541177,1726726243646,-1309.73,0.00013167,2]
[338541179,1726726243656,-312.03807597,0.00013167,2]
[338541181,1726726243665,-1373.59,0.00013167,2]
[338541183,1726726243675,-648.83,0.00013167,2]
[338541185,1726726243685,-500.0,0.00013167,2]
[338541187,1726726243694,-2185.77,0.00013167,2]
[338541189,1726726243704,-745.47,0.00013167,2]
[338541191,1726726243714,-2526.57,0.00013167,2]
[338541193,1726726243723,-780.4,0.00013167,2]
[338541195,1726726243733,-703.21,0.00013167,2]
[338541197,1726726243742,-2352.46,0.00013167,2]
[338541199,1726726243752,-617.37,0.00013167,2]
[338541201,1726726243761,-500.0,0.00013167,2]
[338541203,1726726243771,-758.69,0.00013167,2]
[338541205,1726726243780,-980.72,0.00013167,2]
[338541207,1726726243790,-1192.44,0.00013167,2]
[338541209,1726726243800,-606.78,0.00013167,2]
[338541211,1726726243810,-1532.45,0.00013167,2]
[338541213,1726726243820,-500.0,0.00013167,2]
[338541215,1726726243829,-500.0,0.00013167,2]
[338541217,1726726243839,-500.0,0.00013167,2]
[338541219,1726726243848,-4696.05,0.00013167,2]
[338541221,1726726243858,-568.98,0.00013167,2]
[338541223,1726726243867,-671.48,0.00013167,2]
[338541225,1726726243877,-570.68,0.00013167,2]
[338541227,1726726243886,-500.0,0.00013167,2]
[338541229,1726726243895,-500.0,0.00013167,2]
[338541230,1726726243905,-500.0,0.00013167,2]
[338541231,1726726243915,-500.0,0.00013167,2]
[338541233,1726726243926,-739.77,0.00013167,2]
[338541235,1726726243935,-500.0,0.00013167,2]
[338541237,1726726243945,-1868.37,0.00013167,2]
[338541239,1726726243955,-500.0,0.00013167,2]
[338541241,1726726243964,-500.0,0.00013167,2]
[338541243,1726726243974,-391.88,0.00013167,2]
[338541245,1726726243983,-750.04,0.00013167,2]
[338541247,1726726243993,-633.58,0.00013167,2]
[338541249,1726726244003,-15085.63,0.00013167,2]
[338541251,1726726244013,-500.0,0.00013167,2]
[338541253,1726726244023,-500.0,0.00013167,2]
[338541255,1726726244032,-3366.08,0.00013167,2]
[338541257,1726726244042,-500.0,0.00013167,2]
[338541258,1726726244051,-1209.7,0.00013167,2]
[338541260,1726726244061,-1242.69,0.00013167,2]
[338541262,1726726244070,-500.0,0.00013167,2]
[338541264,1726726244080,-521.27,0.00013167,2]
[338541266,1726726244090,-500.0,0.00013167,2]
[338541268,1726726244107,-500.0,0.00013167,2]
[338541270,1726726244116,-500.0,0.00013167,2]
[338541272,1726726244126,-1446.6,0.00013167,2]
[338541274,1726726244136,-500.0,0.00013167,2]
[338541276,1726726244147,-755.19,0.00013167,2]
[338541278,1726726244157,-500.0,0.00013167,2]
[338541280,1726726244166,-500.0,0.00013167,2]
[338541282,1726726244176,-33358.28,0.00013167,2]
[338541284,1726726244187,-1655.08,0.00013167,2]
[338541286,1726726244199,-672.35,0.00013167,2]
[338541288,1726726244208,-500.0,0.00013167,2]
[338541290,1726726244218,-500.0,0.00013167,2]
[338541292,1726726244228,-500.0,0.00013167,2]
[338541294,1726726244238,-2410.84,0.00013167,2]
[338541296,1726726244247,-500.0,0.00013167,2]
[338541298,1726726244257,-789.21,0.00013167,2]
[338541300,1726726244266,-539.68465296,0.00013167,2]
[338541302,1726726244275,-500.0,0.00013167,2]
[338541304,1726726244285,-500.0,0.00013167,2]
[338541306,1726726244294,-3611.03,0.00013167,2]
[338541308,1726726244304,-959.36,0.00013167,2]
[338541310,1726726244313,-500.0,0.00013167,2]
[338541312,1726726244322,-1600.25,0.00013167,2]
[338541314,1726726244331,-500.0,0.00013167,2]
[338541316,1726726244340,-880.72,0.00013167,2]
[338541318,1726726244350,-500.0,0.00013167,2]
[338541320,1726726244359,-583.52,0.00013167,2]
[338541322,1726726244369,-500.0,0.00013167,2]
[338541324,1726726244378,-2984.99,0.00013167,2]
[338541326,1726726244387,-4554.46,0.00013167,2]
[338541328,1726726244396,-500.0,0.00013167,2]
[338541330,1726726244406,-1342.15,0.00013167,2]
[338541332,1726726244415,-500.0,0.00013167,2]
[338541334,1726726244425,-558.56,0.00013167,2]
[338541336,1726726244434,-2868.83,0.00013167,2]
[338541338,1726726244444,-3490.59,0.00013167,2]
[338541340,1726726244453,-492.58,0.00013167,2]
[338541342,1726726244462,-960.58,0.00013167,2]
[338541344,1726726244472,-1259.38,0.00013167,2]
[338541346,1726726244481,-500.0,0.00013167,2]
[338541347,1726726244491,-500.0,0.00013167,2]
[338541348,1726726244500,-951.69,0.00013167,2]
[338541349,1726726244509,-500.0,0.00013167,2]
[338541350,1726726244519,-561.86,0.00013167,2]
[338541351,1726726244528,-8000.47,0.00013167,2]
[338541352,1726726244537,-828.93,0.00013167,2]
[338541353,1726726244549,-440.96,0.00013167,2]
[338541354,1726726244558,-500.0,0.00013167,2]
[338541355,1726726244568,-876.65,0.00013167,2]
[338541356,1726726244577,-4940.81,0.00013167,2]
[338541357,1726726244587,-500.0,0.00013167,2]
[338541358,1726726244597,-500.0,0.00013167,2]
[338541359,1726726244607,-875.12,0.00013167,2]
[338541360,1726726244616,-1531.27,0.00013167,2]
[338541361,1726726244625,-1045.53,0.00013167,2]
[338541363,1726726244635,-4934.78,0.00013167,2]
[338541364,1726726244644,-1968.35,0.00013167,2]
[338541366,1726726244654,-500.0,0.00013167,2]
[338541368,1726726244664,-500.0,0.00013167,2]
[338541370,1726726244673,-500.0,0.00013167,2]
[338541373,1726726244683,-527.69,0.00013167,2]
[338541375,1726726244692,-818.34,0.00013167,2]
[338541376,1726726244702,-500.0,0.00013167,2]
[338541378,1726726244711,-3041.37,0.00013167,2]
[338541380,1726726244720,-633.53,0.00013167,2]
[338541382,1726726244730,-419.87422882,0.00013167,2]
[338541384,1726726244739,-1306.46,0.00013167,2]
[338541386,1726726244749,-1697.53,0.00013167,2]
[338541388,1726726244759,-500.0,0.00013167,2]
[338541390,1726726244768,-2855.41,0.00013167,2]
[338541392,1726726244778,-500.0,0.00013167,2]
[338541394,1726726244788,-1051.76,0.00013167,2]
[338541396,1726726244797,-1066.5,0.00013167,2]
[338541398,1726726244807,-1339.52,0.00013167,2]
[338541400,1726726244816,-151.0,0.00013167,2]
[338541402,1726726244825,-2356.18,0.00013167,2]
[338541404,1726726244835,-506.17,0.00013167,2]
[338541406,1726726244846,-1765.06,0.00013167,2]
[338541408,1726726244862,-1423.16,0.00013167,2]
[338541410,1726726244872,-823.48,0.00013167,2]
[338541412,1726726244883,-500.0,0.00013167,2]
[338541414,1726726244892,-946.52,0.00013167,2]
[338541416,1726726244902,-500.0,0.00013167,2]
[338541418,1726726244911,-500.0,0.00013167,2]
[338541420,1726726244921,-2012.58,0.00013167,2]
[338541422,1726726244930,-673.3,0.00013167,2]
[338541424,1726726244939,-500.0,0.00013167,2]
[338541426,1726726244949,-500.0,0.00013167,2]
[338541428,1726726244958,-500.0,0.00013167,2]
[338541430,1726726244967,-2978.69,0.00013167,2]
[338541432,1726726244977,-693.84,0.00013167,2]
[338541434,1726726244986,-3072.66,0.00013167,2]
[338541436,1726726244997,-633.05,0.00013167,2]
[338541438,1726726245007,-1806.23,0.00013167,2]
[338541440,1726726245016,-1203.55,0.00013167,2]
[338541442,1726726245027,-878.4,0.00013167,2]
[338541444,1726726245036,-518.32,0.00013167,2]
[338541446,1726726245045,-1000.0,0.00013167,2]
[338541448,1726726245055,-579.58,0.00013167,2]
[338541450,1726726245065,-1413.6,0.00013167,2]
[338541451,1726726245074,-652.59,0.00013167,2]
[338541454,1726726245084,-238.05760678,0.00013167,2]
[338541456,1726726245096,-1726.39,0.00013167,2]
[338541457,1726726245107,-500.0,0.00013167,2]
[338541459,1726726245117,-501.17,0.00013167,2]
[338541462,1726726245127,-1146.17,0.00013167,2]
[338541464,1726726245137,-1791.58,0.00013167,2]
[338541466,1726726245147,-2194.34,0.00013167,2]
[338541467,1726726245156,-1031.8,0.00013167,2]
[338541469,1726726245166,-1020.12,0.00013167,2]
[338541471,1726726245177,-859.05,0.00013167,2]
[338541473,1726726245187,-500.0,0.00013168,2]
[338541475,1726726245196,-1311.15,0.00013168,2]
[338541477,1726726245205,-725.52,0.00013168,2]
[338541479,1726726245215,-1025.01,0.00013168,2]
[338541481,1726726245225,-1155.69,0.00013168,2]
[338541483,1726726245234,-500.0,0.00013168,2]
[338541485,1726726245244,-500.0,0.00013168,2]
[338541487,1726726245253,-999.15,0.00013168,2]
[338541489,1726726245262,-500.0,0.00013168,2]
[338541498,1726726245343,-500.0,0.00013168,2]
[338541500,1726726245358,-1678.98,0.00013168,2]
[338541502,1726726245367,-500.0,0.00013168,2]
[338541503,1726726245376,-151.0,0.00013168,2]
[338541505,1726726245386,-629.03,0.00013168,2]
[338541507,1726726245396,-500.0,0.00013168,2]
[338541508,1726726245404,-1299.53,0.00013168,2]
[338541510,1726726245413,-897.93,0.00013168,2]
[338541512,1726726245423,-500.0,0.00013168,2]
[338541514,1726726245432,-500.0,0.00013168,2]
[338541516,1726726245441,-1690.14,0.00013168,2]
[338541518,1726726245450,-625.51,0.00013168,2]
[338541520,1726726245459,-500.0,0.00013168,2]
[338541522,1726726245469,-1431.49,0.00013168,2]
[338541524,1726726245478,-559.2,0.00013168,2]
[338541526,1726726245487,-500.0,0.00013168,2]
[338541528,1726726245496,-500.0,0.00013168,2]
[338541530,1726726245505,-500.0,0.00013168,2]
[338541532,1726726245514,-500.0,0.00013168,2]
[338541533,1726726245523,-500.0,0.00013168,2]
[338541534,1726726245532,-797.44,0.00013168,2]
[338541536,1726726245541,-711.73,0.00013168,2]
[338541538,1726726245551,-500.0,0.00013168,2]
[338541540,1726726245560,-500.0,0.00013168,2]
[338541542,1726726245569,-500.0,0.00013168,2]
[338541544,1726726245579,-577.66,0.00013168,2]
[338541546,1726726245588,-500.97,0.00013168,2]
[338541548,1726726245598,-500.0,0.00013168,2]
[338541550,1726726245607,-581.11,0.00013168,2]
[338541552,1726726245616,-1206.87,0.00013168,2]
[338541554,1726726245627,-623.23,0.00013168,2]
[338541556,1726726245639,-685.27,0.00013168,2]
[338541558,1726726245648,-1068.24,0.00013168,2]
[338541560,1726726245657,-959.9,0.00013168,2]
[338541563,1726726245667,-708.41,0.00013168,2]
[338541564,1726726245677,-500.0,0.00013168,2]
[338541565,1726726245687,-527.3,0.00013168,2]
[338541566,1726726245697,-500.0,0.00013168,2]
[338541567,1726726245707,-500.0,0.00013168,2]
[338541568,1726726245717,-220.67148277,0.00013168,2]
[338541569,1726726245727,-500.0,0.00013168,2]
[338541570,1726726245736,-500.0,0.00013168,2]
[338541571,1726726245745,-1428.06,0.00013168,2]
[338541572,1726726245755,-500.0,0.00013168,2]
[338541573,1726726245764,-500.0,0.00013168,2]
[338541575,1726726245773,-500.0,0.00013168,2]
[338541576,1726726245783,-500.0,0.00013168,2]
[338541577,1726726245792,-684.88,0.00013168,2]
[338541578,1726726245801,-513.79,0.00013168,2]
[338541579,1726726245811,-1390.29,0.00013168,2]
[338541580,1726726245820,-500.0,0.00013168,2]
[338541581,1726726245829,-500.0,0.00013168,2]
[338541582,1726726245839,-500.0,0.00013168,2]
[338541583,1726726245848,-500.0,0.00013168,2]
[338541584,1726726245858,-1280.76,0.00013168,2]
[338541585,1726726245867,-517.94,0.00013168,2]
[338541586,1726726245876,-500.0,0.00013168,2]
[338541587,1726726245886,-500.0,0.00013168,2]
[338541588,1726726245897,-500.0,0.00013168,2]
[338541589,1726726245907,-1027.37,0.00013168,2]
[338541590,1726726245916,-1105.03,0.00013168,2]
[338541591,1726726245926,-583.41,0.00013168,2]
[338541592,1726726245935,-500.0,0.00013168,2]
[338541593,1726726245945,-500.0,0.00013168,2]
[338541594,1726726245954,-641.74,0.00013168,2]
[338541595,1726726245963,-584.79,0.00013168,2]
[338541596,1726726245972,-500.0,0.00013168,2]
[338541597,1726726245982,-500.0,0.00013168,2]
[338541598,1726726245991,-356.25,0.00013168,2]
[338541599,1726726246001,-500.0,0.00013168,2]
[338541600,1726726246010,-1531.72,0.00013168,2]
[338541601,1726726246019,-500.0,0.00013168,2]
[338541602,1726726246028,-617.17,0.00013168,2]
[338541603,1726726246038,-610.62,0.00013168,2]
[338541604,1726726246048,-500.0,0.00013168,2]
[338541605,1726726246058,-1930.85,0.00013168,2]
[338541606,1726726246068,-859.98,0.00013168,2]
[338541607,1726726246078,-676.16,0.00013168,2]
[338541608,1726726246088,-808.39,0.00013168,2]
[338541609,1726726246101,-1043.04,0.00013168,2]
[338541610,1726726246111,-732.6,0.00013168,2]
[338541611,1726726246121,-500.0,0.00013168,2]
[338541612,1726726246130,-151.0,0.00013168,2]
[338541613,1726726246140,-526.12,0.00013168,2]
[338541614,1726726246150,-988.89,0.00013168,2]
[338541615,1726726246159,-1108.54,0.00013168,2]
[338541616,1726726246168,-500.0,0.00013168,2]
[338541617,1726726246179,-1072.8,0.00013168,2]
[338541618,1726726246189,-500.0,0.00013168,2]
[338541619,1726726246198,-1140.61,0.00013168,2]
[338541620,1726726246207,-500.0,0.00013168,2]
[338541621,1726726246216,-664.19,0.00013168,2]
[338541622,1726726246225,-1101.06,0.00013168,2]
[338541623,1726726246235,-500.0,0.00013168,2]
[338541624,1726726246244,-500.0,0.00013168,2]
[338541625,1726726246253,-934.84,0.00013168,2]
[338541626,1726726246262,-966.26,0.00013168,2]
[338541627,1726726246271,-1172.45,0.00013168,2]
[338541628,1726726246281,-151.0,0.00013168,2]
[338541629,1726726246290,-881.73,0.00013168,2]
[338541630,1726726246299,-1961.74,0.00013168,2]
[338541631,1726726246308,-901.42,0.00013168,2]
[338541632,1726726246318,-151.0,0.00013168,2]
[338541633,1726726246327,-500.0,0.00013168,2]
[338541634,1726726246336,-1876.29,0.00013168,2]
[338541635,1726726246346,-500.0,0.00013168,2]
[338541636,1726726246355,-495.10431383,0.00013168,2]
[338541637,1726726246364,-882.04,0.00013168,2]
[338541638,1726726246374,-500.0,0.00013168,2]
[338541639,1726726246383,-500.0,0.00013168,2]
[338541640,1726726246392,-500.0,0.00013168,2]
[338541641,1726726246403,-519.1,0.00013168,2]
[338541642,1726726246412,-500.0,0.00013168,2]
[338541643,1726726246421,-500.0,0.00013168,2]
[338541644,1726726246431,-1138.27,0.00013168,2]
[338541645,1726726246440,-500.0,0.00013168,2]
[338541646,1726726246450,-500.0,0.00013168,2]
[338541647,1726726246460,-2184.95,0.00013168,2]
[338541648,1726726246470,-1263.15,0.00013168,2]
[338541650,1726726246479,-500.0,0.00013168,2]
[338541652,1726726246488,-527.14,0.00013168,2]
[338541654,1726726246497,-711.28,0.00013168,2]
[338541656,1726726246507,-500.0,0.00013168,2]
[338541658,1726726246516,-1885.04,0.00013168,2]
[338541659,1726726246525,-500.0,0.00013168,2]
[338541660,1726726246535,-500.0,0.00013168,2]
[338541661,1726726246544,-1029.76,0.00013168,2]
[338541662,1726726246553,-569.29,0.00013168,2]
[338541663,1726726246563,-500.0,0.00013168,2]
[338541664,1726726246572,-500.0,0.00013168,2]
[338541665,1726726246581,-658.37,0.00013168,2]
[338541666,1726726246590,-3711.12,0.00013168,2]
[338541667,1726726246600,-151.0,0.00013168,2]
[338541668,1726726246609,-860.39,0.00013168,2]
[338541669,1726726246619,-500.0,0.00013168,2]
[338541670,1726726246628,-500.0,0.00013168,2]
[338541671,1726726246637,-500.0,0.00013168,2]
[338541672,1726726246647,-535.41,0.00013168,2]
[338541673,1726726246656,-556.76,0.00013168,2]
[338541674,1726726246665,-500.0,0.00013168,2]
[338541675,1726726246675,-500.0,0.00013168,2]
[338541676,1726726246684,-1868.78,0.00013168,2]
[338541677,1726726246694,-500.0,0.00013168,2]
[338541678,1726726246703,-4272.35,0.00013168,2]
[338541679,1726726246712,-500.0,0.00013168,2]
[338541681,1726726246722,-2367.01,0.00013168,2]
[338541683,1726726246732,-500.0,0.00013168,2]
[338541685,1726726246742,-827.37,0.00013168,2]
[338541687,1726726246751,-151.0,0.00013168,2]
[338541689,1726726246761,-4740.62,0.00013168,2]
[338541691,1726726246770,-500.0,0.00013168,2]
[338541692,1726726246780,-644.61,0.00013168,2]
[338541693,1726726246789,-1582.0,0.00013168,2]
[338541694,1726726246798,-760.94,0.00013168,2]
[338541695,1726726246808,-662.73,0.00013168,2]
[338541696,1726726246817,-500.0,0.00013168,2]
[338541697,1726726246826,-500.0,0.00013168,2]
[338541698,1726726246835,-1516.71,0.00013168,2]
[338541699,1726726246846,-500.0,0.00013168,2]
[338541700,1726726246856,-1763.84,0.00013168,2]
[338541701,1726726246865,-500.0,0.00013168,2]
[338541702,1726726246875,-1565.25,0.00013168,2]
[338541703,1726726246884,-500.0,0.00013168,2]
[338541704,1726726246893,-630.07,0.00013168,2]
[338541705,1726726246902,-500.0,0.00013168,2]
[338541706,1726726246911,-151.0,0.00013168,2]
[338541707,1726726246921,-500.0,0.00013168,2]
[338541708,1726726246932,-500.0,0.00013168,2]
[338541709,1726726246941,-500.0,0.00013168,2]
[338541710,1726726246951,-737.0,0.00013168,2]
[338541711,1726726246960,-500.0,0.00013168,2]
[338541712,1726726246970,-1390.69,0.00013168,2]
[338541713,1726726246981,-500.0,0.00013168,2]
[338541714,1726726246990,-935.35,0.00013168,2]
[338541715,1726726247000,-500.0,0.00013168,2]
[338541716,1726726247010,-500.0,0.00013168,2]
[338541717,1726726247020,-950.1,0.00013168,2]
[338541718,1726726247029,-624.02,0.00013168,2]
[338541719,1726726247038,-5538.17,0.00013168,2]
[338541720,1726726247047,-862.82,0.00013168,2]
[338541721,1726726247056,-151.0,0.00013168,2]
[338541722,1726726247066,-351.93865349,0.00013168,2]
[338541723,1726726247075,-2060.05,0.00013168,2]
[338541724,1726726247085,-500.0,0.00013168,2]
[338541725,1726726247097,-1787.23,0.00013168,2]
[338541726,1726726247107,-644.69,0.00013168,2]
[338541727,1726726247116,-768.85,0.00013168,2]
[338541728,1726726247126,-3039.04,0.00013168,2]
[338541729,1726726247135,-1823.86,0.00013168,2]
[338541730,1726726247145,-500.0,0.00013168,2]